fUST/lending_fUST_20250121
["ID","MTS","AMOUNT","RATE_DAILY","PERIOD"]
[349787476,1737430240826,-500.0,0.00021917,3]
[349787478,1737430240835,-500.0,0.00021917,3]
[349787480,1737430240844,-1004.5,0.00021917,3]
[349787481,1737430240854,-500.0,0.00021917,3]
[349787484,1737430240864,-500.0,0.00021917,3]
[349787486,1737430240874,-524.95,0.00021917,3]
[349787488,1737430240883,-902.0,0.00021917,3]
[349787490,1737430240892,-1101.31,0.00021917,3]
[349787492,1737430240902,-588.52516086,0.00021917,3]
[349787493,1737430240912,-500.0,0.00021917,3]
[349787495,1737430240921,-546.00458312,0.00021917,3]
[349787497,1737430240930,-500.0,0.00021917,3]
[349787499,1737430240939,-500.0,0.00021917,3]
[349787501,1737430240948,-527.83147228,0.00021917,3]
[349787503,1737430240958,-500.0,0.00021917,3]
[349787506,1737430240967,-500.0,0.00021917,3]
[349787507,1737430240977,-586.81,0.00021917,3]
[349787509,1737430240986,-554.48,0.00021917,3]
[349787512,1737430240996,-618.77,0.00021917,3]
[349787514,1737430241006,-772.88,0.00021917,3]
[349787515,1737430241017,-500.0,0.00021917,3]
[349787517,1737430241026,-194.8190949,0.00021917,3]
[349787519,1737430241037,-500.0,0.00021917,3]
[349787521,1737430241047,-500.0,0.00021917,3]
[349787524,1737430241056,-500.0,0.00021917,3]
[349787526,1737430241066,-500.0,0.00021917,3]
[349787527,1737430241075,-500.0,0.00021917,3]
[349787529,1737430241084,-500.0,0.00021917,3]
[349787531,1737430241094,-500.0,0.00021917,3]
[349787534,1737430241103,-494.5,0.00021917,3]
[349787536,1737430241116,-1674.51,0.00021917,2]
[349787538,1737430241127,-500.0,0.00021917,3]
[349787539,1737430241136,-500.0,0.00021917,3]
[349787542,1737430241146,-500.0,0.00021917,3]
[349787544,1737430241155,-589.97,0.00021917,3]
[349787546,1737430241165,-500.0,0.00021917,3]
[349787548,1737430241174,-3279.83,0.00021917,3]
[349787550,1737430241184,-6272.64,0.00021917,3]
[349787551,1737430241194,-500.0,0.00021917,3]
[349787553,1737430241203,-479.30886553,0.00021917,3]
[349788352,1737430487576,193.11211633,0.00019817,2]
[349788362,1737431258088,163.745449,0.00013973,2]
[349788382,1737431393346,240.38676735,0.000189,2]
[349788398,1737431432484,-166.831564,0.00020159,2]
[349788399,1737431432494,-300.0,0.00020288,2]
[349788400,1737431432504,-7202.00992695,0.00020289,2]
[349788401,1737431432537,-751.15848645,0.00020289,2]
[349788402,1737431432547,-1096.710318,0.00020311,2]
[349788403,1737431432556,-160.0,0.00020358,5]
[349788404,1737431432566,-205.9666074,0.00020429,2]
[349788405,1737431432575,-500.0,0.00020432,2]
[349788406,1737431432584,-303.6813159,0.00020444,2]
[349788407,1737431432594,-400.396,0.0002082,2]
[349788409,1737431432603,-500.0,0.00021547,7]
[349788411,1737431432613,-163.745449,0.00021661,2]
[349788413,1737431432622,-184.96429759,0.00021817,2]
[349788415,1737431432635,-165.389,0.00021829,2]
[349788416,1737431432645,-600.0,0.00021829,2]
[349788417,1737431432655,-2910.52496209,0.00021892,2]
[349788418,1737431432664,-1951.06808424,0.000219,4]
[349788419,1737431432688,-134.47191576,0.000219,4]
[349788420,1737431432697,-448.46367761,0.000219,3]
[349788421,1737431432706,-157.68964489,0.00021916,2]
[349788422,1737431432715,-357.41501289,0.00021916,2]
[349788423,1737431432724,-819.30369726,0.00021916,5]
[349788441,1737431438238,-47789.18989694,0.00021916,5]
[349788443,1737431438247,-60284.52218916,0.00021917,5]
[349788951,1737431443414,-8461.882841,0.00021917,5]
[349792399,1737431694565,234.68808254,0.00019817,2]
[349792402,1737431996205,156.45872169,0.00019817,2]
[349792403,1737432115685,164.686269,0.00013973,2]
[349792534,1737432637390,-500.0,0.00020432,2]
[349792536,1737432637400,-383.754,0.0002082,2]
[349792538,1737432637411,-1243.064326,0.00020835,2]
[349792540,1737432637423,-395.0,0.00021204,2]
[349792542,1737432637432,-2559.0,0.00021249,2]
[349792544,1737432637443,-332.21268973,0.00021817,2]
[349792546,1737432637453,-261.0,0.00021824,2]
[349792548,1737432637462,-600.0,0.00021829,2]
[349792550,1737432637472,-3000.0,0.000219,2]
[349792552,1737432637482,-433.51488825,0.000219,3]
[349792554,1737432637492,-2301.1956492,0.0002191,2]
[349792556,1737432637504,-1243.06432597,0.0002191,2]
[349793146,1737432643561,-1252.38992383,0.0002191,2]
[349793148,1737432643570,-500.0,0.0002191,7]
[349793150,1737432643580,-500.0,0.0002191,7]
[349793152,1737432643590,-500.0,0.0002191,7]
[349793154,1737432643600,-500.0,0.0002191,7]
[349793156,1737432643611,-427.78496377,0.0002191,7]
[349793158,1737432643622,-165.389,0.00021916,2]
[349793160,1737432643633,-508.5314092,0.00021916,7]
[349793162,1737432643642,-5335.26380703,0.00021916,5]
[349793165,1737432643655,-10250.00000002,0.00021916,5]
[349793167,1737432643669,-8718.98299005,0.00021916,5]
[349793169,1737432643681,-42801.74342335,0.00021917,5]
[349793462,1737432646508,-4098.63151978,0.00021917,5]
[349793508,1737432646944,-27446.57348808,0.00021917,5]
[349794911,1737432859746,406.9039787,0.0002,2]
[349794912,1737432868473,312.37700959,0.0002,2]
[349794914,1737433071886,164.640168,0.00013973,2]
[349794916,1737433432653,500.0,0.00019493,2]
[349794917,1737433453848,501.76950048,0.00018518,2]
[349794926,1737433740689,1062.0,0.00024,120]
[349794961,1737433833151,-500.0,0.00020432,2]
[349794962,1737433833163,-500.0,0.00020519,2]
[349794963,1737433833173,-367.904,0.0002082,2]
[349794964,1737433833183,-286.0867239,0.00020841,2]
[349794965,1737433833194,-300.0,0.00020999,2]
[349794966,1737433833204,-77922.37282851,0.00021,2]
[349794967,1737433833453,-500.0,0.00021545,2]
[349794968,1737433833463,-151.0,0.00021602,2]
[349794969,1737433833473,-151.0,0.00021602,2]
[349794970,1737433833483,-151.0,0.00021602,2]
[349794971,1737433833493,-151.0,0.00021602,2]
[349794972,1737433833503,-151.0,0.00021602,2]
[349794973,1737433833512,-151.0,0.00021602,2]
[349794974,1737433833522,-151.0,0.00021602,2]
[349794975,1737433833531,-151.0,0.00021602,2]
[349794976,1737433833541,-151.0,0.00021602,2]
[349794977,1737433833550,-151.0,0.00021602,2]
[349794978,1737433833559,-151.0,0.00021602,2]
[349794979,1737433833568,-151.0,0.00021602,2]
[349794980,1737433833579,-151.0,0.00021602,2]
[349794981,1737433833588,-151.0,0.00021602,2]
[349794982,1737433833597,-151.0,0.00021602,2]
[349794983,1737433833607,-151.0,0.00021602,2]
[349794984,1737433833616,-151.0,0.00021602,2]
[349794985,1737433833626,-151.0,0.00021602,2]
[349794986,1737433833635,-262.0,0.00021602,2]
[349794987,1737433833645,-500.0,0.00021739,7]
[349794988,1737433833655,-500.0,0.00021739,7]
[349794989,1737433833665,-500.0,0.00021739,7]
[349794990,1737433833675,-500.0,0.00021739,7]
[349794991,1737433833684,-500.0,0.00021739,7]
[349794992,1737433833694,-500.0,0.00021739,7]
[349794993,1737433833704,-500.0,0.00021739,7]
[349794994,1737433833713,-500.0,0.00021739,7]
[349794995,1737433833723,-546.19,0.00021739,7]
[349794996,1737433833734,-490.66,0.00021739,7]
[349794997,1737433833744,-600.0,0.00021829,2]
[349794998,1737433833753,-200.0,0.00021916,2]
[349794999,1737433833764,-614.11611145,0.00021916,2]
[349795000,1737433833774,-500.0,0.00021916,2]
[349795001,1737433833785,-227.04965635,0.00021916,2]
[349795002,1737433833795,-167.731,0.00021916,2]
[349795003,1737433833805,-12152.12339855,0.00021916,5]
[349795004,1737433833815,-104045.97266899,0.00021916,5]
[349795237,1737433840925,-24437.37423369,0.00021916,5]
[349795239,1737433840935,-505.6468032,0.00021917,3]
[349795241,1737433840945,-500.0,0.00021917,3]
[349795243,1737433840956,-498.31219008,0.00021917,3]
[349795245,1737433840966,-505.46656412,0.00021917,3]
[349795247,1737433840976,-501.98364643,0.00021917,3]
[349795249,1737433840990,-587.3634819,0.00021917,3]
[349795251,1737433841000,-502.63650072,0.00021917,3]
[349795253,1737433841010,-602.80770401,0.00021917,3]
[349795255,1737433841020,-505.43770606,0.00021917,3]
[349795257,1737433841029,-498.26494124,0.00021917,3]
[349795259,1737433841039,-507.19706514,0.00021917,3]
[349795261,1737433841048,-507.00201265,0.00021917,3]
[349795263,1737433841058,-505.93691668,0.00021917,3]
[349795265,1737433841068,-501.937748,0.00021917,3]
[349795267,1737433841079,-502.77026099,0.00021917,3]
[349795269,1737433841090,-500.0,0.00021917,3]
[349795271,1737433841100,-500.0,0.00021917,3]
[349795273,1737433841109,-500.0,0.00021917,3]
[349795275,1737433841121,-500.0,0.00021917,3]
[349795277,1737433841130,-184.23352796,0.00021917,3]
[349795279,1737433841139,-500.0,0.00021917,3]
[349795281,1737433841149,-500.0,0.00021917,3]
[349795283,1737433841160,-198.34955714,0.00021917,3]
[349795285,1737433841170,-500.0,0.00021917,3]
[349795287,1737433841180,-501.98350979,0.00021917,3]
[349795289,1737433841189,-500.0,0.00021917,3]
[349795291,1737433841199,-588.37,0.00021917,3]
[349795293,1737433841208,-150.3000551,0.00021917,3]
[349795295,1737433841219,-500.0,0.00021917,3]
[349795297,1737433841228,-500.0,0.00021917,3]
[349795299,1737433841240,-439.69524759,0.00021917,3]
[349795301,1737433841250,-500.0,0.00021917,3]
[349795303,1737433841259,-500.0,0.00021917,3]
[349795305,1737433841268,-500.0,0.00021917,3]
[349795307,1737433841278,-500.0,0.00021917,3]
[349795309,1737433841287,-500.0,0.00021917,2]
[349795311,1737433841297,-500.0,0.00021917,3]
[349795313,1737433841306,-500.0,0.00021917,3]
[349795315,1737433841316,-270.72982875,0.00021917,3]
[349795317,1737433841325,-500.0,0.00021917,3]
[349795319,1737433841334,-501.13587185,0.00021917,3]
[349795321,1737433841343,-500.0,0.00021917,3]
[349795323,1737433841352,-412.48969509,0.00021917,3]
[349795325,1737433841362,-500.0,0.00021917,3]
[349795327,1737433841371,-500.0,0.00021917,3]
[349795329,1737433841380,-500.0,0.00021917,3]
[349795331,1737433841390,-500.0,0.00021917,3]
[349795334,1737433841400,-500.85040355,0.00021917,3]
[349795336,1737433841409,-500.0,0.00021917,3]
[349795337,1737433841418,-500.0,0.00021917,3]
[349795340,1737433841428,-502.30343379,0.00021917,3]
[349795342,1737433841437,-501.27561596,0.00021917,3]
[349795344,1737433841446,-500.0,0.00021917,3]
[349795346,1737433841455,-300.0,0.00021917,3]
[349795348,1737433841465,-500.0,0.00021917,3]
[349795350,1737433841474,-500.0,0.00021917,3]
[349795351,1737433841484,-500.0,0.00021917,3]
[349795353,1737433841494,-500.0,0.00021917,3]
[349795355,1737433841503,-500.0,0.00021917,3]
[349795357,1737433841512,-431.25832105,0.00021917,3]
[349795359,1737433841522,-500.0,0.00021917,3]
[349795362,1737433841531,-182.81464743,0.00021917,3]
[349795364,1737433841541,-500.0,0.00021917,3]
[349795366,1737433841550,-500.0,0.00021917,3]
[349795368,1737433841560,-500.0,0.00021917,3]
[349795370,1737433841570,-547.95996291,0.00021917,3]
[349795372,1737433841581,-230.3023551,0.00021917,3]
[349795373,1737433841590,-500.0,0.00021917,3]
[349795376,1737433841600,-500.0,0.00021917,3]
[349795378,1737433841609,-421.06811589,0.00021917,3]
[349795380,1737433841618,-500.0,0.00021917,3]
[349795382,1737433841628,-500.0,0.00021917,3]
[349795384,1737433841637,-500.0,0.00021917,3]
[349795386,1737433841646,-200.0,0.00021917,3]
[349795387,1737433841655,-501.76861991,0.00021917,3]
[349795390,1737433841665,-500.0,0.00021917,3]
[349795392,1737433841675,-500.0,0.00021917,3]
[349795393,1737433841684,-500.0,0.00021917,3]
[349795395,1737433841693,-500.0,0.00021917,3]
[349795397,1737433841703,-500.0,0.00021917,3]
[349795400,1737433841712,-500.0,0.00021917,3]
[349795401,1737433841721,-500.0,0.00021917,3]
[349795403,1737433841732,-502.73815496,0.00021917,2]
[349795405,1737433841741,-500.0,0.00021917,3]
[349795407,1737433841750,-507.68606469,0.00021917,3]
[349795409,1737433841759,-456.41603889,0.00021917,3]
[349795411,1737433841770,-500.0,0.00021917,3]
[349795413,1737433841780,-511.08073688,0.00021917,3]
[349795416,1737433841790,-500.0,0.00021917,3]
[349795417,1737433841799,-500.0,0.00021917,3]
[349795420,1737433841809,-500.0,0.00021917,3]
[349795422,1737433841819,-500.0,0.00021917,3]
[349795424,1737433841828,-500.0,0.00021917,3]
[349795426,1737433841837,-500.0,0.00021917,3]
[349795428,1737433841847,-502.63323059,0.00021917,3]
[349795430,1737433841857,-500.0,0.00021917,3]
[349795432,1737433841866,-500.0,0.00021917,3]
[349795434,1737433841876,-500.0,0.00021917,3]
[349795436,1737433841886,-500.0,0.00021917,3]
[349795438,1737433841895,-501.628794,0.00021917,3]
[349795440,1737433841904,-500.0,0.00021917,3]
[349795442,1737433841914,-500.0,0.00021917,3]
[349795444,1737433841923,-500.0,0.00021917,3]
[349795446,1737433841933,-237.23473962,0.00021917,3]
[349795448,1737433841943,-500.0,0.00021917,3]
[349795450,1737433841953,-500.0,0.00021917,3]
[349795452,1737433841963,-500.0,0.00021917,3]
[349795453,1737433841972,-500.0,0.00021917,3]
[349795454,1737433841982,-500.0,0.00021917,3]
[349795455,1737433841991,-500.0,0.00021917,3]
[349795456,1737433842001,-352.24946242,0.00021917,3]
[349795458,1737433842010,-172.00593395,0.00021917,3]
[349795460,1737433842020,-500.0,0.00021917,3]
[349795462,1737433842029,-500.0,0.00021917,3]
[349795464,1737433842039,-500.0,0.00021917,3]
[349795466,1737433842048,-500.0,0.00021917,3]
[349795468,1737433842057,-500.0,0.00021917,3]
[349795470,1737433842068,-500.0,0.00021917,3]
[349795472,1737433842080,-1161.49,0.00021917,3]
[349795473,1737433842094,-500.0,0.00021917,3]
[349795476,1737433842104,-500.0,0.00021917,3]
[349795478,1737433842113,-500.0,0.00021917,3]
[349795479,1737433842123,-500.0,0.00021917,3]
[349795482,1737433842134,-500.0,0.00021917,3]
[349795484,1737433842144,-193.74686922,0.00021917,3]
[349795486,1737433842155,-500.0,0.00021917,3]
[349795488,1737433842165,-500.0,0.00021917,3]
[349795490,1737433842174,-819.76,0.00021917,3]
[349795492,1737433842184,-517.94963434,0.00021917,3]
[349795494,1737433842193,-696.6,0.00021917,3]
[349795496,1737433842203,-832.09,0.00021917,3]
[349795498,1737433842212,-151.669314,0.00021917,2]
[349795500,1737433842221,-151.0,0.00021917,2]
[349795502,1737433842232,-152.758104,0.00021917,2]
[349795504,1737433842241,-500.0,0.00021917,3]
[349795506,1737433842251,-500.0,0.00021917,3]
[349795508,1737433842260,-346.36797585,0.00021917,3]
[349795510,1737433842269,-522.62,0.00021917,3]
[349795512,1737433842279,-500.0,0.00021917,3]
[349795514,1737433842288,-500.0,0.00021917,3]
[349795516,1737433842297,-500.0,0.00021917,3]
[349795518,1737433842307,-500.0,0.00021917,3]
[349795520,1737433842317,-500.0,0.00021917,3]
[349795522,1737433842328,-500.0,0.00021917,3]
[349795524,1737433842337,-500.0,0.00021917,3]
[349795526,1737433842346,-500.0,0.00021917,3]
[349795528,1737433842356,-500.0,0.00021917,3]
[349795530,1737433842366,-500.0,0.00021917,3]
[349795553,1737433842567,-500.0,0.00021917,3]
[349795555,1737433842579,-500.90496919,0.00021917,3]
[349795557,1737433842589,-500.0,0.00021917,3]
[349795559,1737433842599,-1212.37,0.00021917,3]
[349795561,1737433842608,-677.19,0.00021917,3]
[349795563,1737433842618,-500.0,0.00021917,3]
[349795565,1737433842627,-550.8,0.00021917,3]
[349795567,1737433842636,-500.0,0.00021917,3]
[349795569,1737433842646,-500.0,0.00021917,3]
[349795572,1737433842655,-500.0,0.00021917,3]
[349795574,1737433842665,-500.0,0.00021917,3]
[349795576,1737433842674,-500.0,0.00021917,3]
[349795578,1737433842683,-396.64944481,0.00021917,3]
[349795581,1737433842704,-130.44716971,0.00021917,3]
[349795583,1737433842713,-186.495828,0.00021917,2]
[349795585,1737433842723,-500.0,0.00021917,3]
[349795587,1737433842736,-500.0,0.00021917,3]
[349795589,1737433842746,-500.0,0.00021917,3]
[349795591,1737433842756,-1433.24,0.00021917,3]
[349795593,1737433842765,-500.0,0.00021917,3]
[349795595,1737433842775,-500.0,0.00021917,3]
[349795597,1737433842785,-500.0,0.00021917,3]
[349795599,1737433842795,-500.0,0.00021917,3]
[349795601,1737433842805,-558.44328288,0.00021917,3]
[349795603,1737433842815,-500.0,0.00021917,3]
[349795605,1737433842825,-500.0,0.00021917,3]
[349795607,1737433842835,-899.15,0.00021917,3]
[349795609,1737433842845,-556.36,0.00021917,3]
[349795611,1737433842854,-627.54910263,0.00021917,3]
[349795613,1737433842864,-759.18,0.00021917,3]
[349795615,1737433842874,-584.24352932,0.00021917,3]
[349795617,1737433842883,-500.0,0.00021917,3]
[349795620,1737433842892,-500.0,0.00021917,3]
[349795622,1737433842902,-500.0,0.00021917,3]
[349795624,1737433842912,-581.26244431,0.00021917,3]
[349795626,1737433842922,-2083.56,0.00021917,3]
[349795628,1737433842932,-467.86281126,0.00021917,3]
[349795630,1737433842941,-834.64,0.00021917,3]
[349795632,1737433842950,-500.0,0.00021917,3]
[349795634,1737433842960,-1074.33,0.00021917,3]
[349795635,1737433842969,-500.0,0.00021917,3]
[349795637,1737433842979,-500.0,0.00021917,3]
[349795640,1737433842991,-500.0,0.00021917,3]
[349795642,1737433843001,-640.0,0.00021917,3]
[349795644,1737433843011,-500.0,0.00021917,3]
[349795646,1737433843020,-500.0,0.00021917,3]
[349795648,1737433843030,-500.0,0.00021917,3]
[349795650,1737433843039,-500.0,0.00021917,3]
[349795652,1737433843049,-500.0,0.00021917,3]
[349795654,1737433843059,-564.52,0.00021917,3]
[349795656,1737433843068,-500.0,0.00021917,3]
[349795659,1737433843079,-500.0,0.00021917,3]
[349795661,1737433843089,-500.0,0.00021917,3]
[349795663,1737433843099,-1494.12,0.00021917,3]
[349795665,1737433843108,-500.0,0.00021917,3]
[349795667,1737433843118,-151.0,0.00021917,2]
[349795669,1737433843128,-157.179404,0.00021917,2]
[349795672,1737433843137,-500.0,0.00021917,3]
[349795675,1737433843146,-507.62932721,0.00021917,3]
[349795678,1737433843155,-500.0,0.00021917,3]
[349795681,1737433843165,-500.0,0.00021917,3]
[349795684,1737433843174,-887.21,0.00021917,3]
[349795686,1737433843184,-500.0,0.00021917,3]
[349795688,1737433843193,-500.0,0.00021917,3]
[349795690,1737433843202,-2005.86,0.00021917,3]
[349795693,1737433843211,-500.0,0.00021917,3]
[349795696,1737433843221,-500.0,0.00021917,3]
[349795698,1737433843231,-500.0,0.00021917,3]
[349795700,1737433843240,-707.18,0.00021917,3]
[349795702,1737433843250,-500.0,0.00021917,3]
[349795704,1737433843259,-500.0,0.00021917,3]
[349795706,1737433843268,-681.51,0.00021917,3]
[349795708,1737433843277,-556.03,0.00021917,3]
[349795710,1737433843287,-500.0,0.00021917,3]
[349795712,1737433843296,-673.59,0.00021917,3]
[349795714,1737433843305,-500.0,0.00021917,3]
[349795717,1737433843314,-500.0,0.00021917,3]
[349795720,1737433843323,-500.0,0.00021917,3]
[349795722,1737433843332,-500.0,0.00021917,3]
[349795724,1737433843342,-500.0,0.00021917,3]
[349795726,1737433843351,-500.0,0.00021917,3]
[349795728,1737433843360,-500.0,0.00021917,3]
[349795730,1737433843370,-500.0,0.00021917,3]
[349795732,1737433843379,-500.0,0.00021917,3]
[349795734,1737433843388,-500.46926199,0.00021917,3]
[349795736,1737433843398,-500.0,0.00021917,3]
[349795738,1737433843407,-500.0,0.00021917,3]
[349795740,1737433843416,-540.93,0.00021917,3]
[349795742,1737433843425,-714.4,0.00021917,3]
[349795744,1737433843435,-500.0,0.00021917,3]
[349795746,1737433843444,-535.06,0.00021917,3]
[349795748,1737433843453,-500.0,0.00021917,3]
[349795751,1737433843464,-500.0,0.00021917,3]
[349795752,1737433843473,-1154.5,0.00021917,3]
[349795754,1737433843485,-500.0,0.00021917,3]
[349795757,1737433843494,-580.05,0.00021917,3]
[349795759,1737433843504,-500.0,0.00021917,3]
[349795760,1737433843513,-516.71,0.00021917,3]
[349795763,1737433843523,-500.0,0.00021917,3]
[349795765,1737433843533,-500.96315653,0.00021917,3]
[349795767,1737433843542,-500.0,0.00021917,3]
[349795769,1737433843551,-500.0,0.00021917,3]
[349795771,1737433843561,-500.0,0.00021917,3]
[349795773,1737433843570,-500.0,0.00021917,3]
[349795775,1737433843579,-502.3432558,0.00021917,3]
[349795777,1737433843588,-906.08,0.00021917,3]
[349795779,1737433843597,-500.0,0.00021917,3]
[349795781,1737433843606,-500.0,0.00021917,3]
[349795783,1737433843616,-500.0,0.00021917,3]
[349795785,1737433843625,-500.0,0.00021917,3]
[349795787,1737433843634,-500.0,0.00021917,3]
[349795789,1737433843644,-592.99,0.00021917,3]
[349795791,1737433843653,-500.0,0.00021917,3]
[349795793,1737433843662,-620.95,0.00021917,3]
[349795795,1737433843672,-500.0,0.00021917,3]
[349795797,1737433843682,-500.0,0.00021917,3]
[349795799,1737433843692,-500.0,0.00021917,3]
[349795801,1737433843701,-500.0,0.00021917,3]
[349795803,1737433843711,-500.0,0.00021917,3]
[349795805,1737433843720,-1104.03,0.00021917,3]
[349795807,1737433843732,-500.0,0.00021917,3]
[349795809,1737433843743,-528.72986179,0.00021917,3]
[349795811,1737433843753,-500.0,0.00021917,3]
[349795813,1737433843764,-504.57467689,0.00021917,3]
[349795815,1737433843774,-500.0,0.00021917,3]
[349795817,1737433843786,-767.35,0.00021917,3]
[349795819,1737433843797,-502.10214332,0.00021917,3]
[349795821,1737433843807,-500.0,0.00021917,3]
[349795823,1737433843817,-212.93344001,0.00021917,3]
[349795825,1737433843827,-500.0,0.00021917,3]
[349795827,1737433843836,-503.84623592,0.00021917,3]
[349795829,1737433843846,-500.0,0.00021917,3]
[349795831,1737433843856,-500.0,0.00021917,3]
[349795833,1737433843865,-500.0,0.00021917,3]
[349795835,1737433843875,-500.0,0.00021917,3]
[349795837,1737433843885,-867.93,0.00021917,3]
[349795839,1737433843894,-500.0,0.00021917,3]
[349795841,1737433843903,-500.0,0.00021917,3]
[349795843,1737433843913,-151.0,0.00021917,2]
[349795845,1737433843922,-500.0,0.00021917,3]
[349795847,1737433843931,-151.0,0.00021917,2]
[349795850,1737433843941,-151.0,0.00021917,2]
[349795852,1737433843951,-151.0,0.00021917,2]
[349795854,1737433843960,-500.0,0.00021917,3]
[349795856,1737433843969,-151.0,0.00021917,2]
[349795858,1737433843980,-151.0,0.00021917,2]
[349795860,1737433843990,-151.0,0.00021917,2]
[349795862,1737433843999,-151.0,0.00021917,2]
[349795864,1737433844008,-151.0,0.00021917,2]
[349795866,1737433844017,-151.0,0.00021917,2]
[349795868,1737433844028,-502.28527726,0.00021917,3]
[349795870,1737433844037,-500.0,0.00021917,3]
[349795872,1737433844047,-500.0,0.00021917,3]
[349795874,1737433844056,-1790.9,0.00021917,2]
[349795876,1737433844066,-500.0,0.00021917,3]
[349795878,1737433844076,-501.83684787,0.00021917,3]
[349795880,1737433844087,-500.0,0.00021917,3]
[349795882,1737433844097,-501.83380985,0.00021917,3]
[349795884,1737433844106,-501.91557152,0.00021917,3]
[349795886,1737433844116,-500.0,0.00021917,3]
[349795888,1737433844126,-500.0,0.00021917,3]
[349795890,1737433844135,-500.0,0.00021917,3]
[349795892,1737433844145,-500.0,0.00021917,3]
[349795894,1737433844154,-500.0,0.00021917,3]
[349795896,1737433844165,-2879.54,0.00021917,3]
[349795898,1737433844176,-500.0,0.00021917,3]
[349795901,1737433844186,-501.66533514,0.00021917,3]
[349795903,1737433844195,-11455.99,0.00021917,3]
[349795905,1737433844204,-500.0,0.00021917,3]
[349795907,1737433844214,-500.0,0.00021917,3]
[349795909,1737433844224,-500.0,0.00021917,3]
[349795911,1737433844234,-500.0,0.00021917,3]
[349795913,1737433844243,-500.0,0.00021917,3]
[349795915,1737433844253,-500.0,0.00021917,3]
[349795917,1737433844263,-500.0,0.00021917,3]
[349795919,1737433844272,-500.0,0.00021917,3]
[349795921,1737433844282,-500.0,0.00021917,3]
[349795923,1737433844291,-500.0,0.00021917,3]
[349795925,1737433844301,-500.0,0.00021917,3]
[349795927,1737433844311,-500.0,0.00021917,3]
[349795929,1737433844321,-500.0,0.00021917,3]
[349795931,1737433844330,-500.0,0.00021917,3]
[349795933,1737433844340,-500.0,0.00021917,3]
[349795935,1737433844349,-500.0,0.00021917,3]
[349795937,1737433844358,-500.0,0.00021917,3]
[349795939,1737433844367,-500.0,0.00021917,3]
[349795941,1737433844377,-501.61280234,0.00021917,3]
[349795943,1737433844386,-495.29570177,0.00021917,3]
[349795945,1737433844395,-500.0,0.00021917,3]
[349795948,1737433844404,-500.0,0.00021917,3]
[349795950,1737433844414,-500.0,0.00021917,3]
[349795952,1737433844423,-500.0,0.00021917,3]
[349795954,1737433844432,-151.557652,0.00021917,2]
[349795956,1737433844441,-619.38,0.00021917,3]
[349795958,1737433844450,-500.0,0.00021917,3]
[349795960,1737433844459,-151.0,0.00021917,2]
[349795962,1737433844468,-151.0,0.00021917,2]
[349795964,1737433844478,-160.032072,0.00021917,2]
[349795966,1737433844490,-501.41758819,0.00021917,3]
[349795968,1737433844499,-500.0,0.00021917,3]
[349795970,1737433844509,-1215.73,0.00021917,3]
[349795972,1737433844518,-500.0,0.00021917,3]
[349795974,1737433844527,-805.57,0.00021917,3]
[349795976,1737433844536,-6818.48,0.00021917,3]